fUST/lending_fUST_20250729
["ID","MTS","AMOUNT","RATE_DAILY","PERIOD"]
[375945017,1753793823643,-460.0,0.0001897,2]
[375945018,1753793823668,-171.08,0.0001897,2]
[375945019,1753793823693,-460.0,0.0001897,2]
[375945020,1753793823718,-460.0,0.0001897,2]
[375945021,1753793823744,-460.0,0.0001897,2]
[375945022,1753793823770,-2279.23,0.0001897,2]
[375945023,1753793823794,-460.0,0.0001897,2]
[375945024,1753793823823,-460.0,0.0001897,2]
[375945025,1753793823847,-460.0,0.0001897,2]
[375945026,1753793823872,-460.0,0.0001897,2]
[375945027,1753793823896,-460.0,0.0001897,2]
[375945028,1753793823920,-460.0,0.0001897,2]
[375945029,1753793823943,-460.0,0.0001897,2]
[375945030,1753793823967,-50000.0,0.0001897,2]
[375945031,1753793824116,-460.0,0.00018971,2]
[375945032,1753793824143,-1683.97,0.00018971,2]
[375945033,1753793824168,-701.38,0.00018971,2]
[375945034,1753793824193,-648.68,0.00018971,2]
[375945035,1753793824218,-72.26801344,0.00018971,2]
[375945037,1753793904126,-300.0,0.0001887,2]
[375945038,1753793904150,-564.02,0.00018871,2]
[375945039,1753793904174,-460.0,0.00018871,2]
[375945040,1753793904199,-460.0,0.00018871,2]
[375945041,1753793904223,-460.0,0.00018871,2]
[375945042,1753793904249,-2188.07,0.00018871,2]
[375945043,1753793904274,-460.0,0.00018871,2]
[375945044,1753793904300,-460.0,0.00018871,2]
[375945045,1753793904325,-460.0,0.00018871,2]
[375945046,1753793904351,-460.0,0.00018871,2]
[375945047,1753793904375,-460.85011852,0.00018871,2]
[375945048,1753793904400,-460.0,0.00018871,2]
[375945049,1753793904424,-498.97758148,0.00018871,2]
[375945050,1753793904453,-460.0,0.00018871,2]
[375945051,1753793904481,-800.0,0.000189,2]
[375945052,1753793904506,-272.03801087,0.000189,2]
[375945053,1753793904532,-160.0,0.0001897,2]
[375945054,1753793904557,-460.0,0.0001897,2]
[375945055,1753793904584,-460.0,0.0001897,2]
[375945056,1753793904610,-609.77,0.0001897,2]
[375945057,1753793904635,-607.49,0.0001897,2]
[375945058,1753793904662,-460.0,0.0001897,2]
[375945059,1753793904687,-813.62,0.0001897,2]
[375945060,1753793904717,-460.0,0.0001897,2]
[375945061,1753793904742,-460.0,0.0001897,2]
[375945062,1753793904766,-50000.0,0.00018971,2]
[375945063,1753793904794,-733.38198656,0.00018971,2]
[375945064,1753793904820,-460.0,0.00018971,2]
[375945065,1753793904850,-609.38,0.00018971,2]
[375945066,1753793904877,-664.53,0.00018971,2]
[375945067,1753793904902,-1165.0,0.00018971,2]
[375945068,1753793905089,-526.97,0.00018971,2]
[375945069,1753793905122,-834.28,0.00018971,2]
[375945070,1753793905148,-1006.3,0.00018971,2]
[375945071,1753793905175,-581.03,0.00018971,2]
[375945072,1753793905204,-460.0,0.00018971,2]
[375945073,1753793905229,-460.0,0.00018971,2]
[375945074,1753793905254,-460.0,0.00018972,2]
[375945075,1753793905278,-460.0,0.00018972,2]
[375945076,1753793905303,-460.0,0.00018972,2]
[375945077,1753793905327,-463.67206815,0.00018972,2]
[375945078,1753793905351,-460.0,0.00018972,2]
[375945079,1753793905377,-460.0,0.00018972,2]
[375945080,1753793905401,-460.0,0.00018972,2]
[375945081,1753793905426,-460.0,0.00018972,2]
[375945082,1753793905452,-460.0,0.00018972,2]
[375945083,1753793905477,-512.58029043,0.00018972,2]
[375945084,1753793905499,-460.0,0.00018972,2]
[375945085,1753793905524,-460.0,0.00018972,2]
[375945086,1753793905547,-465.52331914,0.00018972,2]
[375945087,1753793905571,-460.0,0.00018972,2]
[375945088,1753793905595,-350.52576239,0.00018972,2]
[375945089,1753793905617,-460.0,0.00018972,2]
[375945090,1753793905641,-460.0,0.00018972,2]
[375945091,1753793905665,-460.0,0.00018972,2]
[375945092,1753793905692,-460.0,0.00018972,2]
[375945093,1753793905844,462.69056021,0.00018871,2]
[375945094,1753793912007,613.18,0.00018971,2]
[375945095,1753793921152,460.0,0.0001897,2]
[375945096,1753793923235,460.0,0.00018971,2]
[375945097,1753793932095,841.12,0.0001897,2]
[375945098,1753793942660,460.0,0.00018871,2]
[375945099,1753793943269,460.0,0.0001897,2]
[375945100,1753793944054,3571.24,0.00018871,2]
[375945101,1753793945204,460.0,0.0001897,2]
[375945102,1753793961869,460.0,0.00018972,2]
[375945103,1753793974302,606.83,0.00018871,2]
[375945104,1753793975912,460.0,0.00018972,2]
[375945105,1753793980005,884.88,0.00018971,2]
[375945106,1753793996060,538.32215232,0.00018871,2]
[375945107,1753793996790,916.43,0.00018971,2]
[375945108,1753793998851,2894.31,0.00018871,2]
[375945110,1753794002381,269.0,0.00018972,2]
[375945111,1753794002895,300.0,0.00018972,2]
[375945112,1753794005618,1200.0,0.00018972,2]
[375945113,1753794006714,460.0,0.0001897,2]
[375945114,1753794007448,460.0,0.0001897,2]
[375945115,1753794010770,460.0,0.00018972,2]
[375945116,1753794020370,460.0,0.0001897,2]
[375945117,1753794023799,460.0,0.00018972,2]
[375945118,1753794026540,460.0,0.00018871,2]
[375945119,1753794027413,460.0,0.00018871,2]
[375945120,1753794027448,502.56,0.00018971,2]
[375945121,1753794028831,51.42814993,0.00018972,2]
[375945122,1753794136808,395.167612,0.00013699,2]
[375945127,1753794372590,24900.0,0.00017959,2]
[375945139,1753794578440,1696.39993696,0.0001851,2]
[375945141,1753794594416,3156.88687971,0.0001851,2]
[375945245,1753794637366,-179.65011656,0.0001877,2]
[375945247,1753794637376,-179.65011655,0.00018771,2]
[375945249,1753794637386,-1200.0,0.00018869,2]
[375945251,1753794637396,-436.60538383,0.0001887,2]
[375945253,1753794637406,-1200.0,0.0001887,2]
[375945254,1753794637415,-300.0,0.0001887,2]
[375945257,1753794637425,-493.3859736,0.0001887,2]
[375945259,1753794637434,-460.0,0.0001887,2]
[375945261,1753794637444,-10323.55032788,0.00018871,2]
[375945263,1753794637453,-460.0,0.00018871,2]
[375945265,1753794637462,-460.0,0.00018871,2]
[375945267,1753794637472,-496.98,0.00018871,2]
[375945269,1753794637482,-460.0,0.00018871,2]
[375945271,1753794637492,-460.0,0.00018871,2]
[375945273,1753794637501,-460.0,0.00018871,2]
[375945276,1753794637511,-940.31,0.00018871,2]
[375945278,1753794637520,-940.31,0.00018871,2]
[375945280,1753794637530,-940.31,0.00018871,2]
[375945281,1753794637540,-460.0,0.00018871,2]
[375945283,1753794637549,-460.0,0.00018871,2]
[375945285,1753794637558,-460.0,0.00018871,2]
[375945287,1753794637568,-460.0,0.00018871,2]
[375945289,1753794637577,-575.98,0.00018871,2]
[375945291,1753794637587,-460.0,0.00018871,2]
[375945293,1753794637596,-460.0,0.00018871,2]
[375945295,1753794637607,-460.0,0.00018871,2]
[375945297,1753794637617,-460.0,0.00018871,2]
[375945298,1753794637626,-637.45,0.00018871,2]
[375945300,1753794637635,-460.0,0.00018871,2]
[375945302,1753794637645,-460.0,0.00018871,2]
[375945304,1753794637656,-460.0,0.00018871,2]
[375945306,1753794637665,-603.53,0.00018871,2]
[375945308,1753794637675,-601.34,0.00018871,2]
[375945310,1753794637684,-890.63,0.00018871,2]
[375945312,1753794637694,-460.0,0.00018871,2]
[375945315,1753794637703,-3411.5,0.00018871,2]
[375945317,1753794637712,-460.0,0.00018871,2]
[375945319,1753794637722,-460.0,0.00018871,2]
[375945321,1753794637731,-460.0,0.00018871,2]
[375945323,1753794637740,-524.96,0.00018871,2]
[375945324,1753794637750,-460.0,0.00018871,2]
[375945326,1753794637759,-270.52012685,0.00018871,2]
[375945328,1753794637769,-460.0,0.00018871,2]
[375945330,1753794637778,-844.91,0.00018871,2]
[375945332,1753794637788,-460.0,0.00018871,2]
[375945334,1753794637797,-460.0,0.00018871,2]
[375945336,1753794637807,-460.0,0.00018871,2]
[375945338,1753794637816,-460.0,0.00018871,2]
[375945340,1753794637825,-460.0,0.00018871,2]
[375945342,1753794637834,-781.21,0.00018871,2]
[375945344,1753794637844,-460.0,0.00018871,2]
[375945345,1753794637853,-181.35867391,0.000189,2]
[375945347,1753794637864,-383.32980452,0.000189,2]
[375945349,1753794637874,-940.31,0.00018969,2]
[375945351,1753794637883,-940.31,0.00018969,2]
[375945353,1753794637893,-940.31,0.00018969,2]
[375945355,1753794637903,-460.0,0.00018969,2]
[375945357,1753794637913,-460.0,0.00018969,2]
[375945359,1753794637923,-460.0,0.00018969,2]
[375945361,1753794637932,-460.0,0.00018969,2]
[375945364,1753794637942,-460.0,0.00018969,2]
[375945366,1753794637952,-500.0,0.00018969,2]
[375945367,1753794637963,-160.13129038,0.00018969,2]
[375945369,1753794637973,-500.0,0.00018969,2]
[375945371,1753794637983,-479.78572191,0.00018969,2]
[375945373,1753794637993,-565.4,0.00018969,2]
[375945375,1753794638003,-460.0,0.00018969,2]
[375945377,1753794638012,-608.54,0.00018969,2]
[375945378,1753794638022,-2306.55,0.00018969,2]
[375945380,1753794638031,-500.0,0.00018969,2]
[375945382,1753794638040,-500.0,0.00018969,2]
[375945384,1753794638050,-336.68623529,0.00018969,2]
[375945386,1753794638064,-500.0,0.00018969,2]
[375945387,1753794638073,-500.0,0.00018969,2]
[375945388,1753794638082,-500.0,0.00018969,2]
[375945389,1753794638092,-442.52718706,0.00018969,2]
[375945390,1753794638102,-500.0,0.00018969,2]
[375945392,1753794638113,-500.0,0.00018969,2]
[375945394,1753794638122,-200.0,0.00018969,2]
[375945396,1753794638134,-460.0,0.00018969,2]
[375945398,1753794638143,-460.0,0.0001897,2]
[375945400,1753794638153,-460.0,0.0001897,2]
[375945402,1753794638162,-206.12866256,0.0001897,2]
[375945404,1753794638172,-460.0,0.0001897,2]
[375945406,1753794638181,-460.0,0.0001897,2]
[375945408,1753794638192,-460.0,0.0001897,2]
[375945410,1753794638201,-2240.37,0.0001897,2]
[375945412,1753794638210,-994.41,0.0001897,2]
[375945414,1753794638220,-775.6,0.0001897,2]
[375945415,1753794638229,-463.72,0.0001897,2]
[375945417,1753794638239,-460.0,0.0001897,2]
[375945419,1753794638248,-460.0,0.0001897,2]
[375945421,1753794638257,-460.0,0.0001897,2]
[375945423,1753794638267,-460.0,0.0001897,2]
[375945425,1753794638277,-460.0,0.0001897,2]
[375945427,1753794638286,-1133.73,0.0001897,2]
[375945429,1753794638295,-460.0,0.0001897,2]
[375945431,1753794638305,-460.0,0.0001897,2]
[375945433,1753794638314,-460.0,0.0001897,2]
[375945435,1753794638323,-788.18,0.0001897,2]
[375945437,1753794638333,-460.0,0.0001897,2]
[375945439,1753794638342,-940.31,0.0001897,2]
[375945441,1753794638351,-460.0,0.0001897,2]
[375945442,1753794638363,-460.0,0.0001897,2]
[375945444,1753794638374,-973.58,0.0001897,2]
[375945446,1753794638384,-460.0,0.0001897,2]
[375945448,1753794638394,-460.0,0.0001897,2]
[375945450,1753794638404,-460.0,0.0001897,2]
[375945452,1753794638413,-460.0,0.0001897,2]
[375945454,1753794638423,-469.22369722,0.0001897,2]
[375945456,1753794638432,-460.0,0.0001897,2]
[375945458,1753794638441,-460.0,0.0001897,2]
[375945460,1753794638451,-460.0,0.0001897,2]
[375945462,1753794638460,-460.0,0.0001897,2]
[375945464,1753794638469,-394.49280675,0.0001897,2]
[375945466,1753794638478,-460.0,0.0001897,2]
[375945468,1753794638487,-527.57354801,0.0001897,2]
[375945470,1753794638496,-460.0,0.0001897,2]
[375945472,1753794638506,-460.0,0.0001897,2]
[375945474,1753794638515,-460.0,0.0001897,2]
[375945476,1753794638524,-460.0,0.0001897,2]
[375945477,1753794638533,-460.0,0.0001897,2]
[375945479,1753794638543,-460.0,0.0001897,2]
[375945481,1753794638553,-460.0,0.0001897,2]
[375945483,1753794638562,-460.0,0.0001897,2]
[375945486,1753794638572,-460.0,0.0001897,2]
[375945488,1753794638581,-460.0,0.0001897,2]
[375945490,1753794638590,-488.36,0.0001897,2]
[375945492,1753794638601,-500.0,0.00018971,2]
[375945494,1753794638611,-408.57185007,0.00018972,2]
[375945496,1753794638620,-460.0,0.00018972,2]
[375945498,1753794638629,-557.42566553,0.00018972,2]
[375945500,1753794638639,-460.0,0.00018972,2]
[375945502,1753794638649,-460.0,0.00018972,2]
[375945504,1753794638658,-460.0,0.00018972,2]
[375945506,1753794638668,-460.0,0.00018972,2]
[375945508,1753794638677,-460.0,0.00018972,2]
[375945510,1753794638686,-460.0,0.00018972,2]
[375945512,1753794638695,-472.31,0.00018972,2]
[375945513,1753794638705,-460.0,0.00018972,2]
[375945515,1753794638715,-460.0,0.00018972,2]
[375945517,1753794638724,-940.31,0.00018972,2]
[375945519,1753794638734,-460.0,0.00018972,2]
[375945521,1753794638743,-460.0,0.00018972,2]
[375945523,1753794638753,-460.0,0.00018972,2]
[375945525,1753794638763,-460.0,0.00018972,2]
[375945527,1753794638773,-460.0,0.00018972,2]
[375945529,1753794638783,-460.0,0.00018973,2]
[375945531,1753794638793,-485.1269495,0.00018973,2]
[375945533,1753794638802,-475.09302676,0.00018973,2]
[375945534,1753794638812,-158.14529839,0.00018973,2]
[375945536,1753794638823,-256.6339097,0.00018973,2]
[375945538,1753794638832,-460.0,0.00018973,2]
[375945540,1753794638841,-225.76085525,0.00018973,2]
[375945542,1753794638851,-460.0,0.00018973,2]
[375945544,1753794638862,-460.0,0.00018973,2]
[375945546,1753794638872,-460.0,0.00018973,2]
[375945548,1753794638881,-460.0,0.00018973,2]
[375945549,1753794638891,-466.79596382,0.00018973,2]
[375945550,1753794638900,-460.0,0.00018973,2]
[375945551,1753794638910,-31.2668103,0.00018973,2]
[375945552,1753794639061,-428.7331897,0.00018973,2]
[375945553,1753794639071,-940.31,0.00018973,2]
[375945554,1753794639081,-460.0,0.00018973,2]
[375945555,1753794639091,-460.0,0.00018973,2]
[375945556,1753794639101,-460.0,0.00018973,2]
[375945558,1753794639112,-460.0,0.00018973,2]
[375945559,1753794639121,-460.0,0.00018973,2]
[375945560,1753794639132,-460.0,0.00018973,2]
[375945562,1753794639141,-460.0,0.00018973,2]
[375945564,1753794639151,-460.0,0.00018973,2]
[375945566,1753794639160,-460.0,0.00018973,2]
[375945568,1753794639169,-460.29,0.00018973,2]
[375945570,1753794639179,-460.0,0.00018973,2]
[375945572,1753794639188,-861.6,0.00018973,2]
[375945574,1753794639197,-152.57003165,0.00018973,2]
[375945576,1753794639206,-221.35919965,0.00018973,2]
[375945578,1753794639218,-238.64080035,0.00018973,2]
[375945580,1753794639227,-460.0,0.00018973,2]
[375945582,1753794639236,-460.0,0.00018973,2]
[375945584,1753794639246,-460.0,0.00018973,2]
[375945586,1753794639256,-460.0,0.00018973,2]
[375945587,1753794639267,-660.62,0.00018973,2]
[375945589,1753794639284,-3422.44,0.00018973,2]
[375945591,1753794639297,-681.6,0.00018973,2]
[375945594,1753794639307,-460.0,0.00018973,2]
[375945595,1753794639316,-1259.54,0.00018973,2]
[375945597,1753794639326,-460.0,0.00018973,2]
[375945599,1753794639336,-609.0,0.00018973,2]
[375945601,1753794639346,-460.0,0.00018973,2]
[375945604,1753794639355,-460.0,0.00018973,2]
[375945605,1753794639367,-2891.55,0.00018973,2]
[375945607,1753794639376,-878.03,0.00018973,2]
[375945609,1753794639385,-460.0,0.00018973,2]
[375945611,1753794639395,-460.0,0.00018973,2]
[375945613,1753794639404,-460.0,0.00018973,2]
[375945615,1753794639414,-460.0,0.00018973,2]
[375945617,1753794639423,-2068.76,0.00018973,2]
[375945620,1753794639434,-230.55152669,0.00018973,2]
[375945622,1753794639443,-774.45,0.00018973,2]
[375945624,1753794639453,-531.36,0.00018973,2]
[375945626,1753794639470,-904.63,0.00018973,2]
[375945628,1753794639480,-466.23414978,0.00018973,2]
[375945630,1753794639490,-460.0,0.00018973,2]
[375945632,1753794639499,-3513.95778944,0.00018973,2]
[375945636,1753794639528,-352.13535753,0.00018973,2]
[375945698,1753794640090,-1439.81685303,0.00018973,2]
[375945700,1753794640101,-460.0,0.00018973,2]
[375945702,1753794640111,-460.0,0.00018973,2]
[375945704,1753794640121,-679.15,0.00018973,2]
[375945706,1753794640131,-460.0,0.00018973,2]
[375945708,1753794640141,-1033.85,0.00018973,2]
[375945710,1753794640151,-460.0,0.00018973,2]
[375945712,1753794640160,-460.0,0.00018973,2]
[375945715,1753794640170,-120.5498225,0.00018973,2]
[375945884,1753794641854,-374.93965797,0.00018973,2]
[375945886,1753794641865,-495.48948047,0.00018973,2]
[375945888,1753794641875,-460.0,0.00018974,2]
[375945890,1753794641885,-184.91321282,0.00018974,2]
[375945892,1753794641895,-460.0,0.00018974,2]
[375945894,1753794641904,-460.0,0.00018974,2]
[375945896,1753794641914,-460.0,0.00018974,2]
[375945898,1753794641923,-7597.83,0.00018974,2]
[375945900,1753794641933,-1493.03,0.00018974,2]
[375945903,1753794641944,-1901.82,0.00018976,2]
[375945905,1753794641954,-460.0,0.00018976,2]
[375945907,1753794641963,-3018.18,0.00018976,2]
[375945909,1753794641972,-2665.43,0.00018976,2]
[375945911,1753794641982,-460.0,0.00018976,2]
[375945913,1753794641992,-706.16,0.00018976,2]
[375945915,1753794642001,-2132.91,0.00018977,2]
[375945917,1753794642011,-460.0,0.00018977,2]
[375945919,1753794642020,-2806.78195456,0.00019062,2]
[375945935,1753794642176,-469.47107365,0.00019062,2]
[375946048,1753794643038,-460.0,0.0001887,2]
[375946050,1753794643050,-560.55924771,0.00019062,2]
[375946343,1753794645971,-460.0,0.0001897,2]
[375946345,1753794645982,-460.0,0.00018973,2]
[375946347,1753794645991,-458.49826447,0.00018974,2]
[375946352,1753794646028,-1364.08173553,0.00018974,2]
[375946354,1753794646038,-31.03056283,0.00019062,2]
[375946355,1753794646047,-2954.6012081,0.00019062,2]
[375946357,1753794646061,-385.38070703,0.00019062,2]
[375946359,1753794646070,-385.38070703,0.00019062,2]
[375946361,1753794646079,-940.31,0.00019076,2]
[375946363,1753794646089,-460.0,0.00019077,2]
[375946365,1753794646099,-460.0,0.00019077,2]
[375946367,1753794646108,-578.73471906,0.00019077,2]
[375946369,1753794646118,-460.0,0.00019077,2]
[375946371,1753794646127,-460.0,0.00019077,2]
[375946373,1753794646138,-460.0,0.00019077,2]
[375946375,1753794646148,-462.49732318,0.00019077,2]
[375946377,1753794646157,-460.0,0.00019077,2]
[375946379,1753794646167,-460.0,0.00019077,2]
[375946381,1753794646175,-460.0,0.00019077,2]
[375946382,1753794646184,-460.0,0.00019077,2]
[375946384,1753794646194,-460.0,0.00019077,2]
[375946385,1753794646202,-460.0,0.00019077,2]
[375946386,1753794646212,-460.0,0.00019077,2]
[375946387,1753794646222,-460.0,0.00019077,2]
[375946388,1753794646230,-2764.47,0.00019077,2]
[375946389,1753794646239,-1901.21,0.00019077,2]
[375946390,1753794646249,-460.0,0.00019077,2]
[375946391,1753794646259,-852.34,0.00019077,2]
[375946392,1753794646268,-460.0,0.00019144,2]
[375946393,1753794646278,-460.0,0.00019145,2]
[375946394,1753794646287,-460.0,0.00019145,2]
[375946395,1753794646296,-465.19603535,0.00019145,2]
[375946396,1753794646305,-526.06927641,0.00019145,2]
[375946397,1753794646314,-460.0,0.00019145,2]
[375946398,1753794646324,-460.0,0.00019145,2]
[375946399,1753794646333,-460.0,0.00019145,2]
[375946400,1753794646342,-460.0,0.00019145,2]
[375946401,1753794646351,-496.98,0.00019145,2]
[375946402,1753794646361,-460.0,0.00019145,2]
[375946403,1753794646371,-460.0,0.00019145,2]
[375946404,1753794646381,-460.0,0.00019145,2]
[375946405,1753794646390,-460.0,0.00019145,2]
[375946407,1753794646433,-460.0,0.00019145,2]
[375946409,1753794646442,-460.0,0.00019145,2]
[375946411,1753794646451,-460.0,0.00019145,2]
[375946413,1753794646460,-460.0,0.00019145,2]
[375946415,1753794646470,-637.45,0.00019145,2]
[375946417,1753794646479,-460.0,0.00019145,2]
[375946419,1753794646488,-460.0,0.00019145,2]
[375946421,1753794646497,-460.0,0.00019145,2]
[375946423,1753794646506,-603.53,0.00019145,2]
[375946425,1753794646516,-601.34,0.00019145,2]
[375946427,1753794646525,-890.63,0.00019145,2]
[375946429,1753794646534,-128.33275149,0.00019145,2]
[375948417,1753794726474,160.562841,0.00018305,2]
[375948420,1753794902013,162.0,0.000185,2]
[375948421,1753794917847,162.0,0.000185,2]
[375948422,1753794926947,-161.43190931,0.00018769,2]
[375948425,1753795180461,46.24774393,0.00017929,2]
[375948426,1753795180484,156.04339502,0.00017929,2]
[375948427,1753795180507,597.70886105,0.00017929,2]
[375948428,1753795241023,800.0,0.00018076,2]
[375948429,1753795403092,24900.0,0.00017878,2]
[375948430,1753795503988,375.409231,0.00013699,2]
[375949067,1753795838548,-770.37750259,0.000187,2]
[375949086,1753795838721,-2049.62249741,0.000187,2]
[375949088,1753795838730,-161.4319093,0.00018768,2]
[375949090,1753795838740,-454.40762811,0.0001877,2]
[375949092,1753795838749,-1200.0,0.00018868,2]
[375949094,1753795838758,-300.0,0.00018868,2]
[375949096,1753795838768,-1200.0,0.00018868,2]
[375949098,1753795838777,-460.0,0.00018869,2]
[375949100,1753795838787,-460.0,0.00018869,2]
[375949102,1753795838796,-460.0,0.00018869,2]
[375949104,1753795838805,-460.0,0.00018869,2]
[375949106,1753795838814,-460.0,0.00018869,2]
[375949108,1753795838824,-460.0,0.00018869,2]
[375949110,1753795838833,-460.0,0.00018869,2]
[375949112,1753795838843,-460.0,0.00018869,2]
[375949114,1753795838852,-460.0,0.00018869,2]
[375949116,1753795838863,-460.0,0.00018869,2]
[375949118,1753795838872,-460.0,0.00018869,2]
[375949120,1753795838881,-569.28,0.00018869,2]
[375949122,1753795838891,-237.04778176,0.00018869,2]
[375949124,1753795838900,-460.0,0.00018869,2]
[375949126,1753795838909,-510.72,0.00018869,2]
[375949128,1753795838919,-606.07076401,0.00018869,2]
[375949130,1753795838928,-1441.17,0.00018869,2]
[375949132,1753795838939,-460.0,0.00018869,2]
[375949134,1753795838948,-460.0,0.00018869,2]
[375949136,1753795838958,-460.00618458,0.00018869,2]
[375949138,1753795838967,-460.0,0.0001887,2]
[375949140,1753795838977,-460.0,0.0001887,2]
[375949142,1753795838987,-460.0,0.0001887,2]
[375949144,1753795838997,-460.0,0.0001887,2]
[375949146,1753795839006,-460.0,0.0001887,2]
[375949148,1753795839015,-460.0,0.0001887,2]
[375949150,1753795839024,-310.0,0.0001887,2]
[375949152,1753795839034,-460.0,0.0001887,2]
[375949154,1753795839043,-460.0,0.0001887,2]
[375949156,1753795839054,-460.0,0.0001887,2]
[375949158,1753795839064,-460.0,0.0001887,2]
[375949160,1753795839073,-460.0,0.0001887,2]
[375949162,1753795839082,-460.0,0.0001887,2]
[375949164,1753795839092,-460.0,0.0001887,2]
[375949166,1753795839101,-1018.28,0.0001887,2]
[375949168,1753795839111,-777.63,0.0001887,2]
[375949170,1753795839120,-464.52,0.0001887,2]
[375949172,1753795839131,-460.0,0.0001887,2]
[375949174,1753795839140,-460.0,0.0001887,2]
[375949176,1753795839149,-1105.66,0.0001887,2]
[375949178,1753795839159,-460.0,0.0001887,2]
[375949180,1753795839168,-460.0,0.0001887,2]
[375949182,1753795839178,-460.0,0.0001887,2]
[375949184,1753795839189,-460.0,0.0001887,2]
[375949186,1753795839198,-460.0,0.0001887,2]
[375949188,1753795839207,-466.8541975,0.0001887,2]
[375949190,1753795839217,-460.0,0.0001887,2]
[375949192,1753795839226,-981.32,0.0001887,2]
[375949194,1753795839236,-460.0,0.0001887,2]
[375949196,1753795839245,-460.0,0.0001887,2]
[375949198,1753795839255,-460.0,0.0001887,2]
[375949200,1753795839264,-460.0,0.0001887,2]
[375949202,1753795839274,-460.0,0.0001887,2]
[375949204,1753795839283,-460.0,0.0001887,2]
[375949206,1753795839293,-460.0,0.0001887,2]
[375949208,1753795839303,-2654.0,0.0001887,2]
[375949210,1753795839312,-460.0,0.0001887,2]
[375949212,1753795839322,-1929.65,0.0001887,2]
[375949214,1753795839333,-460.0,0.0001887,2]
[375949216,1753795839344,-460.0,0.0001887,2]
[375949218,1753795839355,-463.22526367,0.0001887,2]
[375949220,1753795839364,-460.0,0.0001887,2]
[375949222,1753795839374,-460.0,0.0001887,2]
[375949224,1753795839384,-460.0,0.0001887,2]
[375949226,1753795839395,-460.0,0.0001887,2]
[375949228,1753795839405,-460.0,0.0001887,2]
[375949230,1753795839415,-460.0,0.0001887,2]
[375949232,1753795839427,-460.0,0.0001887,2]
[375949234,1753795839442,-460.0,0.0001887,2]
[375949236,1753795839452,-867.9,0.0001887,2]
[375949238,1753795839462,-460.0,0.0001887,2]
[375949240,1753795839472,-460.0,0.0001887,2]
[375949242,1753795839482,-417.28232043,0.0001887,2]
[375949244,1753795839492,-500.0,0.00018871,2]
[375949246,1753795839502,-306.51938433,0.00018871,2]
[375949248,1753795839513,-460.0,0.00018871,2]
[375949250,1753795839522,-460.0,0.00018871,2]
[375949252,1753795839532,-460.0,0.00018871,2]
[375949255,1753795839542,-460.0,0.00018871,2]
[375949257,1753795839552,-150.0,0.000189,2]
[375949258,1753795839562,-160.28079856,0.00018967,2]
[375949261,1753795839572,-300.0,0.00018967,2]
[375949263,1753795839582,-460.0,0.00018968,2]
[375949265,1753795839592,-460.0,0.00018968,2]
[375949267,1753795839602,-460.0,0.00018968,2]
[375949269,1753795839611,-460.0,0.00018968,2]